bitfinex/quotes_SOLUSD_20260213
["timestamp","ask_amount","ask_price","bid_price","bid_amount"]
[1770992120848,0.48462778,80.035,80.011,0.46149019]
[1770992121151,0.48462778,80.049,80.011,0.46149019]
[1770992123056,0.48462778,80.049,80.013,0.46149019]
[1770992124653,0.48462778,80.049,80.015,0.46149019]
[1770992126333,0.48462778,80.039,80.015,0.46149019]
[1770992126846,0.48462778,80.039,80.017,0.46149019]
[1770992128261,0.48462778,80.039,80.019,0.46149019]
[1770992129962,0.48462778,80.039,80.02,100.27906523]
[1770992130467,0.48462778,80.039,80.02,100.74055542]
[1770992131069,0.48462778,80.039,80.021,0.48053214]
[1770992132161,0.48462778,80.039,80.022,12.49656344]
[1770992133063,1.6,80.067,80.023,0.48053214]
[1770992133064,4.32678513,80.05,80.023,0.48053214]
[1770992133843,62.62209616,80.1,80.031,0.48053214]
[1770992134068,4.32678513,80.07,80.034,43.73141414]
[1770992134259,4.32678513,80.07,80.036,0.48053214]
[1770992134447,12.48801006,80.077,80.036,0.48053214]
[1770992134854,0.45535737,80.068,80.036,0.48053214]
[1770992135065,0.45535737,80.063,80.036,0.48053214]
[1770992135251,0.45534099,80.075,80.038,0.48053214]
[1770992135452,0.45534099,80.069,80.038,0.48053214]
[1770992135954,0.45534099,80.069,80.039,56.74]
[1770992136154,0.45534099,80.069,80.04,12.97428526]
[1770992136370,0.45534099,80.069,80.041,56.74]
[1770992136557,4.78209393,80.06,80.041,57.20571821]
[1770992136745,0.4553088,80.06,80.041,57.20571821]
[1770992136941,0.4553088,80.06,80.041,0.46571821]
[1770992137369,0.4553088,80.06,80.042,56.72]
[1770992137767,0.45529298,80.065,80.043,0.46571821]
[1770992140171,0.45529298,80.065,80.044,12.49312877]
[1770992140372,0.45529298,80.065,80.045,0.46571821]
[1770992140775,0.4552466,80.079,80.045,0.46571821]
[1770992141156,4.32678513,80.07,80.045,0.46571821]
[1770992141356,0.45523149,80.069,80.045,0.46571821]
[1770992142266,0.45523149,80.069,80.047,0.46571821]
[1770992144975,0.45523149,80.069,80.049,0.46571821]
[1770992146682,0.45523149,80.069,80.05,12.49219237]
[1770992147265,0.45523149,80.069,80.05,12.95791058]
[1770992147878,0.45523149,80.069,80.046,56.8]
[1770992147879,4.32678513,80.06,80.046,12.49273507]
[1770992148082,0.45514442,80.059,80.051,56.50485556]
[1770992148382,0.45514442,80.059,80.052,56.96]
[1770992148580,0.45514442,80.059,80.049,56.96]
[1770992150383,16.81599657,80.07,80.049,56.96]
[1770992150894,4.32678513,80.06,80.049,56.96]
[1770992151195,4.32678513,80.06,80.044,12.99368208]
[1770992151395,4.32678513,80.06,80.045,57.0]
[1770992151693,4.32678513,80.07,80.045,57.0]
[1770992151988,4.32678513,80.07,80.046,12.49281663]
[1770992152172,4.32678513,80.07,80.046,12.99342315]
[1770992152883,1.6,80.077,80.047,0.50060652]
[1770992153669,1.6,80.077,80.048,12.49250449]
[1770992153895,1.6,80.077,80.049,0.50060652]
[1770992154096,4.32678513,80.08,80.049,0.50060652]
[1770992154270,4.32678513,80.08,80.051,0.50060652]
[1770992155160,4.32678513,80.09,80.051,0.50060652]
[1770992156178,16.81284559,80.09,80.053,0.50060652]
[1770992156695,4.32678513,80.08,80.053,0.50060652]
[1770992157190,12.48606046,80.09,80.053,0.50060652]
[1770992157398,4.32678513,80.08,80.055,0.50060652]
[1770992159073,4.32678513,80.09,80.057,0.50060652]
[1770992159587,4.32678513,80.08,80.057,0.50060652]
[1770992160972,4.32678513,80.09,80.059,0.50060652]
[1770992162398,4.52678513,80.1,80.061,0.50060652]
[1770992162576,17.01122692,80.1,80.061,0.50060652]
[1770992163488,4.52678513,80.1,80.063,0.50060652]
[1770992163687,4.52678513,80.1,80.065,0.50060652]
[1770992164089,4.32678513,80.12,80.071,0.50060652]
[1770992164392,49.90354947,80.155,80.062,43.71612]
[1770992164393,4.52678513,80.11,80.073,0.50060652]
[1770992165492,4.52678513,80.11,80.074,43.70956864]
[1770992165695,4.52678513,80.11,80.075,0.50060652]
[1770992168500,4.52678513,80.11,80.077,0.50060652]
[1770992168794,4.32678513,80.09,80.06,31.22625678]
[1770992168990,4.32678513,80.09,80.066,57.34]
[1770992169582,4.32678513,80.09,80.066,57.84060652]
[1770992170174,4.32678513,80.09,80.067,12.48954001]
[1770992170808,4.32678513,80.08,80.067,12.48954001]
[1770992171690,4.32678513,80.08,80.06,31.22625678]
[1770992171894,4.32678513,80.07,79.99,4.32678513]
[1770992172195,4.32678513,80.08,80.021,0.50060652]
[1770992172196,4.32678513,80.06,80.021,0.50060652]
[1770992172372,4.32678513,80.05,80.023,0.50060652]
[1770992172997,4.32678513,80.05,80.024,21.36]
[1770992173199,4.32678513,80.04,80.016,0.50060652]
[1770992173398,4.32678513,80.06,80.018,0.50060652]
[1770992173698,4.32678513,80.06,80.021,0.50060652]
[1770992174401,4.32678513,80.07,80.031,0.50060652]
[1770992174604,4.32678513,80.08,80.031,0.50060652]
[1770992175399,4.32678513,80.07,80.031,0.50060652]
[1770992176176,4.32678513,80.07,80.032,43.73250698]
[1770992176380,4.32678513,80.07,80.034,0.50060652]
[1770992176896,4.3215488,80.07,80.034,0.50060652]
[1770992177090,4.3215488,80.08,80.034,0.50060652]
[1770992178101,4.3215488,80.08,80.041,0.50060652]
[1770992178300,4.3215488,80.09,80.051,0.50060652]
[1770992179198,4.3215488,80.08,80.051,0.50060652]
[1770992179499,4.3215488,80.07,80.052,57.62]
[1770992179702,4.3215488,80.08,80.052,57.62]
[1770992179897,4.3215488,80.08,80.053,0.50060652]
[1770992180906,4.3215488,80.08,80.054,12.49156819]
[1770992182394,4.3215488,80.07,80.055,57.64]
[1770992183085,4.3215488,80.08,80.055,57.64]
[1770992183899,4.3215488,80.08,80.057,0.50060652]
[1770992184491,12.4862435,80.089,80.057,0.50060652]
[1770992184800,4.3215488,80.08,80.057,0.50060652]
[1770992186395,4.3215488,80.08,80.059,0.50060652]
[1770992186796,4.3215488,80.09,80.059,0.50060652]
[1770992187398,16.80756002,80.09,80.059,0.50060652]
[1770992187598,4.3215488,80.09,80.059,0.50060652]
[1770992188315,16.80750727,80.09,80.059,0.50060652]
[1770992188612,4.3215488,80.08,80.058,57.68]
[1770992188790,4.3215488,80.08,80.059,12.49078804]
[1770992190015,4.3215488,80.08,80.059,12.99139456]
[1770992190498,16.80750727,80.09,80.06,0.50060652]
[1770992190895,16.80750727,80.09,80.058,57.68]
[1770992190896,1.6,80.133,80.071,0.50060652]
[1770992191113,16.80288237,80.12,80.071,0.50060652]
[1770992191330,12.48182197,80.117,80.071,0.50060652]
[1770992192518,12.48182197,80.117,80.074,0.50060652]
[1770992192691,4.3215488,80.12,80.074,0.50060652]
[1770992192895,12.48165162,80.118,80.074,0.50060652]
[1770992194795,12.48212912,80.115,80.076,0.50060652]
[1770992195222,62.38480004,80.148,80.091,0.50060652]
[1770992195223,31.19267879,80.148,80.091,0.50060652]
[1770992195515,4.5215488,80.14,80.091,0.50060652]
[1770992195700,12.47856614,80.138,80.091,0.50060652]
[1770992196423,4.3215488,80.13,80.091,0.50060652]
[1770992197720,16.80134366,80.13,80.093,0.50060652]
[1770992198318,16.80134366,80.13,80.095,0.50060652]
[1770992199425,4.3215488,80.12,80.096,57.74]
[1770992199725,4.3215488,80.12,80.097,12.4848621]
[1770992201527,4.3215488,80.13,80.098,0.50060652]
[1770992201906,4.3215488,80.13,80.1,0.50060652]
[1770992202111,12.47987619,80.129,80.1,0.50060652]
[1770992204223,12.47987619,80.129,80.101,12.48423864]
[1770992204417,12.47987619,80.129,80.101,70.74484516]
[1770992204630,4.3215488,80.13,80.102,0.50060652]
[1770992206323,4.3215488,80.12,80.084,0.50060652]
[1770992206528,4.3215488,80.12,80.086,0.50060652]
[1770992207025,4.3215488,80.12,80.088,0.50060652]
[1770992207529,12.48143386,80.119,80.088,0.50060652]
[1770992208611,12.48143386,80.119,80.092,0.50060652]
[1770992209012,12.48143386,80.119,80.093,57.76]
[1770992209733,4.3215488,80.12,80.094,0.50060652]
[1770992209915,12.48143386,80.119,80.094,0.50060652]
[1770992214234,4.3215488,80.12,80.096,0.50060652]
[1770992214532,12.48143386,80.119,80.096,0.50060652]
[1770992214914,4.3215488,80.12,80.096,0.50060652]
[1770992215133,12.48143386,80.119,80.096,0.50060652]
[1770992215941,12.48143386,80.119,80.097,12.4848621]
[1770992216128,4.3215488,80.12,80.097,12.4848621]
[1770992216315,4.3215488,80.13,80.098,0.50060652]
[1770992216515,43.67543607,80.137,80.098,0.50060652]
[1770992216930,12.47863034,80.137,80.098,0.50060652]
[1770992217133,12.47863034,80.137,80.1,0.50060652]
[1770992217326,4.5215488,80.14,80.1,0.50060652]
[1770992217632,4.5215488,80.14,80.101,0.50060652]
[1770992218139,12.47831892,80.139,80.103,0.50060652]
[1770992219217,4.5215488,80.14,80.103,0.50060652]
[1770992219418,16.99977064,80.14,80.103,0.50060652]
[1770992220218,16.99977064,80.14,80.105,0.50060652]
[1770992220419,16.99977064,80.14,80.104,70.32377109]
[1770992220420,16.99977064,80.14,80.107,0.50060652]
[1770992221423,4.5215488,80.14,80.107,0.50060652]
[1770992222345,12.47831892,80.139,80.109,0.50060652]
[1770992222542,12.47831892,80.139,80.111,0.50060652]
[1770992223837,4.5215488,80.14,80.111,0.50060652]
[1770992224141,0.2,80.14,80.111,0.50060652]
[1770992224340,0.2,80.14,80.113,0.50060652]
[1770992225538,0.2,80.14,80.114,57.88]
[1770992225747,0.2,80.14,80.115,0.50060652]
[1770992225948,4.5215488,80.14,80.115,0.50060652]
[1770992226140,0.2,80.14,80.115,0.50060652]
[1770992226444,0.2,80.14,80.117,0.50060652]
[1770992228651,0.2,80.14,80.118,12.98219617]
[1770992229232,0.2,80.14,80.118,12.48158965]
[1770992229435,0.2,80.14,80.119,0.50060652]
[1770992229639,4.5215488,80.14,80.118,12.48158965]
[1770992229840,4.5215488,80.14,80.12,57.94]
[1770992230933,4.5215488,80.14,80.121,12.4811223]
[1770992231344,0.2,80.14,80.122,0.50060652]
[1770992232539,0.2,80.14,80.123,57.96]
[1770992233947,0.2,80.14,80.124,12.48065498]
[1770992237235,4.5215488,80.14,80.123,57.96]
[1770992237752,4.5215488,80.14,80.123,70.44075357]
[1770992238129,4.5215488,80.14,80.123,57.96]
[1770992238355,4.5215488,80.14,80.124,12.48065498]
[1770992238530,0.2,80.14,80.124,12.48065498]
[1770992238852,4.5215488,80.14,80.123,57.96]
[1770992239028,0.2,80.14,80.123,58.46060652]
[1770992240556,0.2,80.14,80.123,70.94132623]
[1770992240855,12.47831892,80.139,80.124,58.02]
[1770992241755,0.2,80.14,80.125,0.50060652]
[1770992241961,4.31405829,80.16,80.125,0.50060652]
[1770992242259,4.31405829,80.16,80.127,0.50060652]
[1770992242941,16.78925464,80.16,80.129,0.50060652]
[1770992243132,16.78925464,80.16,80.131,0.50060652]
[1770992245039,1.8,80.17,80.133,0.50060652]
[1770992245040,0.2,80.17,80.133,0.50060652]
[1770992245240,0.2,80.17,80.135,0.50060652]
[1770992245537,0.2,80.17,80.141,0.50060652]
[1770992246146,4.51405829,80.17,80.141,0.50060652]
[1770992246345,12.47364941,80.169,80.142,58.04]
[1770992246761,12.47364941,80.169,80.143,0.50060652]
[1770992247540,4.51405829,80.17,80.145,0.50060652]
[1770992247745,16.98758308,80.17,80.145,0.50060652]
[1770992248865,0.2,80.17,80.147,0.50060652]
[1770992249363,4.51405829,80.17,80.147,0.50060652]
[1770992250065,0.2,80.17,80.147,0.50060652]
[1770992251165,0.2,80.17,80.149,0.50060652]
[1770992251754,0.2,80.18,80.151,0.50060652]
[1770992252366,0.2,80.18,80.153,0.50060652]
[1770992253058,0.2,80.18,80.155,0.50060652]
[1770992255862,0.2,80.18,80.156,43.66485352]
[1770992256054,0.2,80.18,80.157,0.50060652]
[1770992256568,0.2,80.18,80.159,0.50060652]
[1770992256865,1e-08,80.18,80.159,0.50060652]
[1770992257062,1e-08,80.18,80.161,0.50060652]
[1770992257654,1e-08,80.18,80.163,0.50060652]
[1770992258250,1e-08,80.18,80.165,0.50060652]
[1770992258456,1e-08,80.18,80.166,58.32]
[1770992258657,1e-08,80.18,80.167,0.50060652]
[1770992259545,1e-08,80.18,80.168,43.65831752]
[1770992259746,0.1990973,80.218,80.172,0.46343709]
[1770992259962,0.2,80.24,80.202,0.50015517]
[1770992260163,1e-08,80.24,80.221,0.50015517]
[1770992260345,1e-08,80.24,80.223,0.50015517]
[1770992261374,1e-08,80.24,80.225,0.50015517]
[1770992262853,1e-08,80.24,80.224,43.62784203]
[1770992262854,1e-08,80.24,80.227,0.50015517]
[1770992263173,1e-08,80.24,80.226,58.4]
[1770992263174,1e-08,80.27,80.232,0.50015517]
[1770992263473,1e-08,80.27,80.229,4.61729252]
[1770992263474,1e-08,80.27,80.253,0.50015517]
[1770992263656,1e-08,80.27,80.254,58.44]
[1770992264146,1e-08,80.27,80.253,0.50015517]
[1770992264350,1e-08,80.27,80.254,58.46]
[1770992264849,1e-08,80.27,80.255,0.50015517]
[1770992265458,1e-08,80.27,80.256,12.96028276]
[1770992265654,1e-08,80.27,80.257,0.50015517]
[1770992266178,1e-08,80.27,80.258,58.98015517]
[1770992266372,0.2,80.28,80.259,0.50015517]
[1770992266869,0.2,80.28,80.261,0.50015517]
[1770992268060,0.2,80.28,80.263,0.50015517]
[1770992268377,4.31405829,80.3,80.264,0.50015517]
[1770992269558,12.45345521,80.299,80.264,0.50015517]
[1770992270074,4.31405829,80.29,80.264,0.50015517]
[1770992270274,4.31405829,80.3,80.266,0.50015517]
[1770992270776,4.31405829,80.29,80.261,12.4592831]
[1770992270988,4.31405829,80.29,80.262,58.52]
[1770992271278,4.31405829,80.29,80.262,0.50015517]
[1770992271489,4.31405829,80.29,80.264,0.50015517]
[1770992271690,4.31405829,80.31,80.271,0.50015517]
[1770992272386,4.31405829,80.31,80.273,0.50015517]
[1770992272784,4.31405829,80.32,80.281,0.50015517]
[1770992273363,12.44648013,80.344,80.283,0.50015517]
[1770992273679,4.31405829,80.33,80.291,0.50015517]
[1770992275488,0.244681,80.345,80.282,58.52]
[1770992275489,0.244681,80.345,80.311,0.50015517]
[1770992275692,0.244681,80.345,80.292,93.40905693]
[1770992275693,0.244681,80.345,80.321,0.50015517]
[1770992275861,0.244681,80.345,80.322,58.48]
[1770992276793,0.244681,80.345,80.323,0.50015517]
[1770992276976,0.244681,80.345,80.325,0.50015517]
[1770992277365,0.244681,80.345,80.327,0.50015517]
[1770992277982,0.244681,80.345,80.326,12.44926922]
[1770992277983,0.2,80.36,80.331,0.50015517]
[1770992278180,12.64100221,80.379,80.341,0.46343709]
[1770992278383,12.44106047,80.379,80.341,0.46343709]
[1770992278574,0.19993884,80.378,80.341,0.46343709]
[1770992279590,0.19993884,80.378,80.343,0.46343709]
[1770992279777,0.19993598,80.376,80.343,0.46343709]
[1770992280489,0.19993315,80.369,80.339,0.46343709]
[1770992280792,12.4405309,80.383,80.345,0.46343709]
[1770992280981,12.4405309,80.383,80.344,58.42]
[1770992280982,0.19993035,80.383,80.351,0.46063752]
[1770992281186,0.19992759,80.409,80.361,0.46063752]
[1770992281492,0.19992759,80.419,80.381,0.46063752]
[1770992281691,0.19992759,80.419,80.36,4.31405829]
[1770992281692,31.28327554,80.43,80.401,0.46063752]
[1770992281693,0.2,80.43,80.401,0.46063752]
[1770992281890,0.2,80.43,80.403,0.46063752]
[1770992282093,0.2,80.43,80.402,58.38]
[1770992282094,0.19992759,80.419,80.39,0.46063752]
[1770992282390,0.19992759,80.419,80.392,0.46063752]
[1770992282977,0.19992486,80.429,80.401,0.46063752]
[1770992283191,0.19992486,80.429,80.403,0.46063752]
[1770992283892,0.19992215,80.419,80.403,58.16007784]
[1770992285274,0.19992215,80.419,80.39,0.50011625]
[1770992285487,0.19992215,80.419,80.392,58.38]
[1770992285683,12.43492604,80.419,80.392,58.38]
[1770992285886,4.51405829,80.43,80.394,0.50011625]
[1770992286193,0.2,80.43,80.401,0.50011625]
[1770992287790,0.2,80.43,80.411,0.50011625]
[1770992288385,4.51405829,80.43,80.412,58.38]
[1770992288590,0.2,80.43,80.412,58.38]
[1770992288973,0.2,80.43,80.39,0.50011625]
[1770992288974,12.43332628,80.429,80.39,0.50011625]
[1770992289174,12.43332628,80.429,80.338,49.78948198]
[1770992289175,4.31405829,80.42,80.386,0.50011625]
[1770992289482,4.31405829,80.42,80.388,0.50011625]
[1770992290401,16.74878452,80.42,80.39,0.50011625]
[1770992291393,16.74878452,80.42,80.383,0.50011625]
[1770992291394,4.31405829,80.41,80.383,0.50011625]
[1770992291584,4.31405829,80.41,80.382,12.44046545]
[1770992291779,4.31405829,80.41,80.382,12.9405817]
[1770992291984,4.31405829,80.41,80.383,0.50011625]
[1770992292488,4.31405829,80.41,80.384,12.44028662]
[1770992292684,0.2,80.43,80.369,0.50011625]
[1770992292888,4.31405829,80.4,80.361,0.50011625]
[1770992293202,54.47332628,80.429,80.381,0.50011625]
[1770992293387,4.31405829,80.42,80.381,0.50011625]
[1770992293582,12.43332628,80.429,80.381,0.50011625]
[1770992293798,12.43332628,80.429,80.391,0.50011625]
[1770992293994,0.2,80.43,80.391,0.50011625]
[1770992294197,0.2,80.43,80.401,0.50011625]
[1770992294693,0.2,80.43,80.403,0.50011625]
[1770992295197,4.51405829,80.43,80.402,12.43750155]
[1770992295399,4.51405829,80.43,80.402,12.9376178]
[1770992295584,4.51405829,80.43,80.403,0.50011625]
[1770992295985,16.94730576,80.43,80.402,12.43750155]
[1770992296184,4.51405829,80.43,80.403,0.50011625]
[1770992297498,12.43332628,80.429,80.404,12.43719217]
[1770992297702,12.43332628,80.429,80.403,12.93746297]
[1770992297898,4.51405829,80.43,80.403,12.93746297]
[1770992298079,12.43332628,80.429,80.397,12.4381342]
[1770992298284,12.43332628,80.429,80.398,0.50011625]
[1770992299285,4.48362971,80.43,80.4,0.50011625]
[1770992300393,4.28362971,80.42,80.392,0.50011625]
[1770992301500,12.43332628,80.429,80.392,0.50011625]
[1770992302190,4.48362971,80.43,80.392,0.50011625]
[1770992302389,4.48362971,80.43,80.394,0.50011625]
[1770992303185,12.43332628,80.429,80.394,0.50011625]
[1770992303706,4.48362971,80.43,80.394,0.50011625]
[1770992304006,12.43332628,80.429,80.394,0.50011625]
[1770992304706,12.43332628,80.429,80.395,12.43858448]
[1770992304908,4.28362971,80.42,80.395,12.43858448]
[1770992305810,12.43332628,80.429,80.355,0.50011625]
[1770992305811,4.28362971,80.4,80.355,0.50011625]
[1770992305988,4.28362971,80.39,80.355,0.50011625]
[1770992306188,4.28362971,80.41,80.361,0.50011625]
[1770992306487,4.28362971,80.4,80.363,0.50011625]
[1770992307197,43.51664199,80.429,80.365,0.50011625]
[1770992307403,12.43332628,80.429,80.381,0.50011625]
[1770992307601,4.48362971,80.43,80.381,0.50011625]
[1770992307791,0.2,80.43,80.391,0.50011625]
[1770992308193,4.48362971,80.43,80.391,0.50011625]
[1770992311617,0.2,80.43,80.393,0.50011625]
[1770992311789,0.2,80.43,80.401,0.50011625]
[1770992312618,4.48362971,80.43,80.401,0.50011625]
[1770992313694,4.48362971,80.43,80.402,12.43750155]
[1770992314810,12.43332628,80.429,80.402,12.43750155]
[1770992315412,12.43332628,80.429,80.402,12.9376178]
[1770992315610,4.48362971,80.43,80.402,12.9376178]
[1770992316007,4.48362971,80.43,80.403,0.50011625]
[1770992316817,16.91689228,80.43,80.403,0.50011625]
[1770992317913,4.28362971,80.41,80.384,0.50011625]
[1770992318115,4.28362971,80.41,80.385,12.44013186]
[1770992318315,4.28362971,80.4,80.385,12.44013186]
[1770992319032,4.28362971,80.4,80.377,0.50011625]
[1770992319210,4.28362971,80.39,80.363,0.50011625]
[1770992320020,4.28362971,80.39,80.364,0.50011625]
[1770992320422,4.28362971,80.39,80.365,12.44322777]
[1770992320606,4.28362971,80.39,80.366,0.50011625]
[1770992322434,4.28362971,80.39,80.368,0.50011625]
[1770992324133,4.28362971,80.38,80.356,0.50011625]
[1770992324625,16.72454767,80.38,80.356,0.50011625]
[1770992324833,4.28362971,80.38,80.357,12.44446656]
[1770992325211,4.28362971,80.38,80.358,0.50011625]
[1770992326220,4.28362971,80.38,80.36,0.50011625]
[1770992326421,4.28362971,80.39,80.36,0.50011625]
[1770992329319,4.28362971,80.39,80.362,0.50011625]
[1770992329723,41.74,80.395,80.362,0.50011625]
[1770992330738,41.74,80.395,80.364,0.50011625]
[1770992330942,4.28362971,80.39,80.364,0.50011625]
[1770992332236,4.28362971,80.38,80.364,0.50011625]
[1770992332436,4.28362971,80.38,80.363,12.44353744]
[1770992333147,4.28362971,80.39,80.359,0.50011625]
[1770992333636,41.8,80.396,80.359,0.50011625]
[1770992335128,41.8,80.396,80.361,0.50011625]
[1770992335330,4.28362971,80.41,80.371,0.50011625]
[1770992336037,4.48362971,80.43,80.391,0.50011625]
[1770992336423,12.43332628,80.429,80.391,0.50011625]
[1770992336720,4.48362971,80.43,80.391,0.50011625]
[1770992337245,4.48362971,80.43,80.393,0.50011625]
[1770992337822,16.91680688,80.43,80.393,0.50011625]
[1770992340450,4.48362971,80.43,80.395,0.50011625]
[1770992340964,12.43332628,80.429,80.395,0.50011625]
[1770992341126,4.28362971,80.41,80.394,12.4387392]
[1770992341543,4.28362971,80.42,80.394,12.4387392]
[1770992342633,4.28362971,80.42,80.388,12.43966761]
[1770992342847,4.28362971,80.42,80.389,0.50011625]
[1770992343324,12.43487235,80.419,80.389,0.50011625]
[1770992345125,12.43487235,80.419,80.37,4.28362971]
[1770992345126,4.28362971,80.41,80.377,0.50011625]
[1770992345337,4.28362971,80.41,80.378,0.50011625]
[1770992345520,12.43487235,80.419,80.378,0.50011625]
[1770992345521,4.28362971,80.4,80.378,0.50011625]
[1770992347044,4.28362971,80.39,80.376,12.4415146]
[1770992347242,12.43734686,80.403,80.357,0.50011625]
[1770992347549,4.28362971,80.4,80.357,0.50011625]
[1770992348546,4.28362971,80.39,80.357,0.50011625]
[1770992349346,4.28362971,80.38,80.358,12.94442795]
[1770992349731,4.28362971,80.38,80.354,12.44486541]
[1770992349931,4.28362971,80.38,80.355,0.50011625]
[1770992350132,41.82,80.399,80.355,0.50011625]
[1770992350341,4.28362971,80.39,80.355,0.50011625]
[1770992351555,4.28362971,80.39,80.357,0.50011625]
[1770992352444,12.43951286,80.389,80.357,0.50011625]
[1770992352660,4.28362971,80.38,80.357,0.50011625]
[1770992352827,4.28362971,80.39,80.357,0.50011625]
[1770992353450,16.72302518,80.39,80.357,0.50011625]
[1770992354232,4.28362971,80.39,80.358,12.4443117]
[1770992354434,4.28362971,80.39,80.359,0.50011625]
[1770992355354,1.6,80.398,80.361,0.50011625]
[1770992355653,4.28362971,80.4,80.361,0.50011625]
[1770992356539,4.28362971,80.4,80.363,0.50011625]
[1770992357069,4.28362971,80.39,80.363,0.50011625]
[1770992357557,4.28362971,80.38,80.363,0.50011625]
[1770992358463,4.28362971,80.38,80.344,0.50011625]
[1770992358644,4.28362971,80.38,80.346,0.50011625]
[1770992358838,12.43827506,80.397,80.346,0.50011625]
[1770992359046,4.28362971,80.39,80.351,0.50011625]
[1770992359361,4.28362971,80.38,80.351,0.50011625]
[1770992359563,4.28362971,80.37,80.351,0.50011625]
[1770992360940,4.28958903,80.37,80.352,12.94535718]
[1770992363158,4.28958903,80.37,80.352,12.44524093]
[1770992363741,4.28958903,80.37,80.352,0.50011625]
[1770992364667,4.28958903,80.36,80.352,0.50011625]
[1770992364873,4.28958903,80.37,80.352,0.50011625]
[1770992365870,4.28958903,80.37,80.324,62.24777195]
[1770992365871,4.28958903,80.37,80.353,12.9452023]
[1770992366842,4.28958903,80.38,80.354,0.50011625]
[1770992367064,4.28958903,80.37,80.354,0.50011625]
[1770992367763,4.28958903,80.37,80.356,0.50011625]
[1770992368268,4.28958903,80.38,80.356,0.50011625]
[1770992369565,4.28958903,80.4,80.36,4.28958903]
[1770992369753,4.28958903,80.44,80.36,4.28958903]
[1770992369754,4.28958903,80.41,80.363,0.50011625]
[1770992370261,4.28958903,80.41,80.371,0.50011625]
[1770992371552,4.28958903,80.41,80.373,0.50011625]
[1770992371746,4.28958903,80.41,80.375,0.50011625]
[1770992371947,4.28958903,80.4,80.375,0.50011625]
[1770992372546,4.28958903,80.41,80.375,0.50011625]
[1770992372873,4.28958903,80.4,80.375,0.50011625]
[1770992373858,4.28958903,80.4,80.363,58.14]
[1770992373859,4.28958903,80.39,80.376,12.94164108]
[1770992374063,4.28958903,80.39,80.376,12.44152483]
[1770992374259,4.28958903,80.39,80.372,12.9421716]
[1770992375057,4.28958903,80.39,80.373,0.50011625]
[1770992375693,4.28958903,80.4,80.373,0.50011625]
[1770992376673,16.72752752,80.4,80.374,12.44183442]
[1770992378174,4.28958903,80.39,80.373,12.94203084]
[1770992378786,4.28958903,80.38,80.341,0.50011625]
[1770992378976,4.28958903,80.38,80.343,0.50011625]
[1770992380379,4.28958903,80.37,80.343,0.50011625]
[1770992380573,41.68,80.386,80.343,0.50011625]
[1770992380780,12.44106047,80.379,80.345,0.50011625]
[1770992381283,41.68,80.386,80.345,0.50011625]
[1770992381481,41.68,80.386,80.351,0.50011625]
[1770992381692,4.28958903,80.39,80.351,0.50011625]
[1770992382879,12.43951286,80.389,80.353,0.50011625]
[1770992383888,4.28958903,80.39,80.353,0.50011625]
[1770992384387,16.72900488,80.39,80.353,0.50011625]
[1770992384787,4.28958903,80.39,80.353,0.50011625]
[1770992384982,4.28958903,80.39,80.355,0.50011625]
[1770992385873,4.28958903,80.4,80.355,0.50011625]
[1770992386886,12.43765624,80.401,80.355,0.50011625]
[1770992387081,4.28958903,80.4,80.361,0.50011625]
[1770992388289,12.43712985,80.405,80.361,0.50011625]
[1770992388466,4.28958903,80.4,80.361,0.50011625]
[1770992388871,45.90958903,80.41,80.361,0.50011625]
[1770992389093,4.28958903,80.41,80.363,0.50011625]
[1770992389789,12.4364188,80.409,80.363,0.50011625]
[1770992389990,4.28958903,80.4,80.363,0.50011625]
[1770992390891,4.28958903,80.39,80.365,0.50011625]
[1770992391090,4.28958903,80.39,80.366,12.44307294]
[1770992391976,4.28958903,80.38,80.362,12.44361951]
[1770992392594,4.28958903,80.38,80.359,0.50011625]
[1770992394070,4.28958903,80.37,80.357,12.44442489]
[1770992394497,41.58,80.396,80.359,0.50011625]
[1770992394669,4.28958903,80.4,80.361,0.50011625]
[1770992395784,4.28958903,80.4,80.363,0.50011625]
[1770992397798,4.28958903,80.4,80.365,0.50011625]
[1770992398671,12.43701088,80.406,80.365,0.50011625]
[1770992398894,4.28958903,80.4,80.365,0.50011625]
[1770992400500,4.28958903,80.4,80.366,12.44307294]
[1770992400697,4.28958903,80.39,80.366,12.44307294]
[1770992401099,4.28958903,80.39,80.366,12.94318919]
[1770992401304,4.28958903,80.39,80.367,0.50011625]
[1770992402586,4.28958903,80.38,80.357,0.50011625]
[1770992403801,4.28958903,80.39,80.357,0.50011625]
[1770992404802,4.28958903,80.39,80.359,0.50011625]
[1770992404996,4.28958903,80.4,80.359,0.50011625]
[1770992405406,41.5,80.408,80.359,0.50011625]
[1770992405597,4.28958903,80.41,80.361,0.50011625]
[1770992406808,4.28958903,80.41,80.364,0.50011625]
[1770992408208,4.28958903,80.4,80.366,0.50011625]
[1770992410309,4.28958903,80.4,80.37,0.50011625]